[Event "*** Titled Tuesday Blitz"]
[Site "Chess.com"]
[Date "2020.10.20"]
[Round "6"]
[White "oneshot007"]
[Black "chesstrainer2042"]
[Result "0-1"]
[WhiteElo "2312"]
[BlackElo "2447"]
[TimeControl "180+1"]
[EndTime "11:08:45 PDT"]
[Termination "chesstrainer2042 won on time"]

1. e4 {[%clk 0:03:00.9]} 1... c5 {[%clk 0:02:58.5]} 2. Nf3 {[%clk 0:03:01.2]}
2... e6 {[%clk 0:02:57.9]} 3. Nc3 {[%clk 0:03:00.7]} 3... a6 {[%clk 0:02:57.1]}
4. d4 {[%clk 0:03:00.7]} 4... cxd4 {[%clk 0:02:57.4]} 5. Nxd4 {[%clk 0:03:01.6]}
5... b5 {[%clk 0:02:57.4]} 6. g3 {[%clk 0:03:00.6]} 6... Bb7 {[%clk 0:02:56.3]}
7. Bg2 {[%clk 0:03:00.9]} 7... Nc6 {[%clk 0:02:56.6]} 8. O-O {[%clk 0:03:00.1]}
8... Rc8 {[%clk 0:02:50.3]} 9. Re1 {[%clk 0:02:44.2]} 9... d6 {[%clk 0:02:49.5]}
10. Nxc6 {[%clk 0:02:30.1]} 10... Bxc6 {[%clk 0:02:49.3]} 11. a4 {[%clk
0:02:30.6]} 11... b4 {[%clk 0:02:44.5]} 12. Nd5 {[%clk 0:02:30.6]} 12... a5
{[%clk 0:02:44.9]} 13. Be3 {[%clk 0:02:18.2]} 13... Rb8 {[%clk 0:02:31.7]} 14.
Bd4 {[%clk 0:01:51.3]} 14... Nf6 {[%clk 0:02:26.9]} 15. Bxf6 {[%clk 0:01:29.3]}
15... gxf6 {[%clk 0:02:26.2]} 16. Qg4 {[%clk 0:01:20.3]} 16... h5 {[%clk
0:02:11.3]} 17. Qf3 {[%clk 0:01:10.4]} 17... Be7 {[%clk 0:01:58.9]} 18. b3
{[%clk 0:01:06.7]} 18... exd5 {[%clk 0:01:43.8]} 19. exd5 {[%clk 0:01:06.2]}
19... Ba8 {[%clk 0:01:34.2]} 20. Qxf6 {[%clk 0:01:05.4]} 20... Rg8 {[%clk
0:01:20.4]} 21. Re2 {[%clk 0:00:44.7]} 21... Rg6 {[%clk 0:00:54.3]} 22. Qf5
{[%clk 0:00:19.8]} 22... Kf8 {[%clk 0:00:52.7]} 23. Rae1 {[%clk 0:00:19.3]}
23... Rb7 {[%clk 0:00:42.5]} 24. Qxh5 {[%clk 0:00:18.3]} 24... Kg7 {[%clk
0:00:39.7]} 25. Be4 {[%clk 0:00:17.9]} 25... Rh6 {[%clk 0:00:29.6]} 26. Qg4+
{[%clk 0:00:18.1]} 26... Kh8 {[%clk 0:00:29.6]} 27. Qf5 {[%clk 0:00:17.1]} 27...
Kg7 {[%clk 0:00:27.5]} 28. h4 {[%clk 0:00:16]} 28... Rc7 {[%clk 0:00:26.4]} 29.
Bd3 {[%clk 0:00:16.1]} 29... Bb7 {[%clk 0:00:25.4]} 30. Re4 {[%clk 0:00:16.2]}
30... Bc8 {[%clk 0:00:23.1]} 31. Qf3 {[%clk 0:00:05.2]} 31... Qf8 {[%clk
0:00:15.8]} 32. Rf4 {[%clk 0:00:04.4]} 32... Bf6 {[%clk 0:00:14]} 33. g4 {[%clk
0:00:02.3]} 33... Be5 {[%clk 0:00:13.3]} 0-1

[Event "*** Titled Tuesday Blitz"]
[Site "Chess.com"]
[Date "2020.10.20"]
[Round "6"]
[White "Infernal_XaM"]
[Black "Sibelephant"]
[Result "0-1"]
[WhiteElo "2863"]
[BlackElo "3103"]
[TimeControl "180+1"]
[EndTime "11:08:47 PDT"]
[Termination "Sibelephant won on time"]

1. d4 {[%clk 0:03:00.9]} 1... Nf6 {[%clk 0:02:59.6]} 2. c4 {[%clk 0:03:01.8]}
2... c6 {[%clk 0:02:59.7]} 3. Nc3 {[%clk 0:02:59.2]} 3... d5 {[%clk 0:02:59.7]}
4. Nf3 {[%clk 0:02:59.8]} 4... e6 {[%clk 0:03:00.1]} 5. e3 {[%clk 0:02:59.5]}
5... Nbd7 {[%clk 0:03:00.2]} 6. Bd2 {[%clk 0:02:59.2]} 6... Ne4 {[%clk
0:02:59.2]} 7. Bd3 {[%clk 0:02:55.8]} 7... f5 {[%clk 0:02:59.2]} 8. Qe2 {[%clk
0:02:41.9]} 8... Bd6 {[%clk 0:02:59]} 9. O-O-O {[%clk 0:02:32.8]} 9... O-O
{[%clk 0:02:58.7]} 10. h3 {[%clk 0:02:19.9]} 10... b5 {[%clk 0:02:48.5]} 11. c5
{[%clk 0:02:19.3]} 11... Bc7 {[%clk 0:02:47.9]} 12. g4 {[%clk 0:02:17.7]} 12...
Qf6 {[%clk 0:02:29.4]} 13. g5 {[%clk 0:01:41.8]} 13... Qe7 {[%clk 0:02:28.9]}
14. h4 {[%clk 0:01:41.8]} 14... e5 {[%clk 0:02:21.9]} 15. Kb1 {[%clk 0:01:35.2]}
15... Nxc3+ {[%clk 0:02:20.4]} 16. Bxc3 {[%clk 0:01:30.3]} 16... e4 {[%clk
0:02:20.8]} 17. Bc2 {[%clk 0:01:30.8]} 17... exf3 {[%clk 0:02:21.3]} 18. Qxf3
{[%clk 0:01:31.7]} 18... a5 {[%clk 0:01:55.4]} 19. Rdg1 {[%clk 0:01:20.4]} 19...
b4 {[%clk 0:01:55.2]} 20. Bd2 {[%clk 0:01:20.7]} 20... Qe6 {[%clk 0:01:46]} 21.
h5 {[%clk 0:01:19.3]} 21... Ba6 {[%clk 0:01:45.9]} 22. Rh4 {[%clk 0:01:12.4]}
22... Bc4 {[%clk 0:01:41.8]} 23. Qh3 {[%clk 0:01:02.6]} 23... Rab8 {[%clk
0:01:35.3]} 24. b3 {[%clk 0:01:01.4]} 24... Bb5 {[%clk 0:01:31.4]} 25. f3 {[%clk
0:01:01.8]} 25... Rbe8 {[%clk 0:01:28.3]} 26. Qg2 {[%clk 0:00:54.7]} 26... Qe7
{[%clk 0:01:19]} 27. e4 {[%clk 0:00:48.1]} 27... fxe4 {[%clk 0:00:55.8]} 28.
fxe4 {[%clk 0:00:49]} 28... Nxc5 {[%clk 0:00:56.2]} 29. dxc5 {[%clk 0:00:45.9]}
29... Qxc5 {[%clk 0:00:56.4]} 30. g6 {[%clk 0:00:17.7]} 30... h6 {[%clk
0:00:56.2]} 31. Rd1 {[%clk 0:00:13.4]} 31... Be5 {[%clk 0:00:45]} 32. exd5
{[%clk 0:00:11.7]} 32... cxd5 {[%clk 0:00:44.1]} 33. Bc1 {[%clk 0:00:03.5]}
33... Bc6 {[%clk 0:00:25.8]} 34. Qd2 {[%clk 0:00:02]} 34... Rf2 {[%clk
0:00:25.1]} 35. Qd3 {[%clk 0:00:01.4]} 35... Kh8 {[%clk 0:00:19.8]} 36. Be3
{[%clk 0:00:01.7]} 36... Qf8 {[%clk 0:00:15]} 37. Bxf2 {[%clk 0:00:01.9]} 37...
Qxf2 {[%clk 0:00:15.9]} 38. Rg4 {[%clk 0:00:01.8]} 38... Bf6 {[%clk 0:00:15.6]}
0-1

[Event "*** Titled Tuesday Blitz"]
[Site "Chess.com"]
[Date "2020.10.20"]
[Round "6"]
[White "Sven_Tica"]
[Black "dennisodessa"]
[Result "0-1"]
[WhiteElo "2636"]
[BlackElo "2442"]
[TimeControl "180+1"]
[EndTime "11:08:47 PDT"]
[Termination "dennisodessa won by resignation"]

1. d4 {[%clk 0:03:00.9]} 1... e6 {[%clk 0:03:00.9]} 2. c4 {[%clk 0:03:01.1]}
2... Nf6 {[%clk 0:03:00]} 3. g3 {[%clk 0:03:01.4]} 3... Bb4+ {[%clk 0:03:00.6]}
4. Bd2 {[%clk 0:03:01.1]} 4... a5 {[%clk 0:03:01.3]} 5. Bg2 {[%clk 0:03:01.4]}
5... O-O {[%clk 0:03:01]} 6. Nf3 {[%clk 0:03:00.5]} 6... b6 {[%clk 0:02:58.6]}
7. O-O {[%clk 0:03:00.1]} 7... Bb7 {[%clk 0:02:58.4]} 8. Bf4 {[%clk 0:02:59.2]}
8... Be7 {[%clk 0:02:54.7]} 9. Nc3 {[%clk 0:02:58.6]} 9... Ne4 {[%clk
0:02:51.4]} 10. Qc2 {[%clk 0:02:46.1]} 10... Nxc3 {[%clk 0:02:51.1]} 11. Qxc3
{[%clk 0:02:45.8]} 11... Be4 {[%clk 0:02:51.7]} 12. Rfd1 {[%clk 0:02:41.6]}
12... d6 {[%clk 0:02:51.4]} 13. Rac1 {[%clk 0:02:36.6]} 13... Nd7 {[%clk
0:02:51.3]} 14. b3 {[%clk 0:02:36.5]} 14... Qc8 {[%clk 0:02:48.9]} 15. Ne1
{[%clk 0:02:32.6]} 15... Bxg2 {[%clk 0:02:46.9]} 16. Kxg2 {[%clk 0:02:33.5]}
16... Bf6 {[%clk 0:02:43]} 17. Qf3 {[%clk 0:02:26.4]} 17... e5 {[%clk
0:02:35.4]} 18. dxe5 {[%clk 0:02:26.3]} 18... Nxe5 {[%clk 0:02:35.6]} 19. Bxe5
{[%clk 0:02:26.3]} 19... Bxe5 {[%clk 0:02:36.5]} 20. Nd3 {[%clk 0:02:26.4]}
20... Re8 {[%clk 0:02:36.5]} 21. e3 {[%clk 0:02:24.2]} 21... Qe6 {[%clk
0:02:31.3]} 22. Qd5 {[%clk 0:02:10.9]} 22... Rad8 {[%clk 0:02:22.5]} 23. Re1
{[%clk 0:02:08.7]} 23... h5 {[%clk 0:02:08.6]} 24. f4 {[%clk 0:02:06.4]} 24...
Bf6 {[%clk 0:02:07.3]} 25. e4 {[%clk 0:02:06.4]} 25... g6 {[%clk 0:02:05.2]} 26.
h3 {[%clk 0:02:00.2]} 26... Kg7 {[%clk 0:02:01.3]} 27. Re2 {[%clk 0:01:40.3]}
27... Rd7 {[%clk 0:02:01.4]} 28. Nf2 {[%clk 0:01:35.9]} 28... Rde7 {[%clk
0:01:58.7]} 29. Kf3 {[%clk 0:01:34.7]} 29... Rh8 {[%clk 0:01:46.6]} 30. Rcc2
{[%clk 0:01:28.3]} 30... Ree8 {[%clk 0:01:34.1]} 31. Rcd2 {[%clk 0:01:27.6]}
31... Re7 {[%clk 0:01:34.2]} 32. Qxe6 {[%clk 0:01:22.1]} 32... Rxe6 {[%clk
0:01:34.3]} 33. Rd5 {[%clk 0:01:22.2]} 33... Rhe8 {[%clk 0:01:31.5]} 34. h4
{[%clk 0:01:21.8]} 34... Bc3 {[%clk 0:01:28.1]} 35. a3 {[%clk 0:01:08.2]} 35...
Bf6 {[%clk 0:01:12.5]} 36. Nd3 {[%clk 0:01:02.2]} 36... c6 {[%clk 0:01:11.6]}
37. f5 {[%clk 0:01:00.7]} 37... cxd5 {[%clk 0:01:10.3]} 38. fxe6 {[%clk
0:00:59.8]} 38... dxe4+ {[%clk 0:01:08]} 39. Rxe4 {[%clk 0:00:56.3]} 39... fxe6
{[%clk 0:01:00.8]} 40. g4 {[%clk 0:00:51.1]} 40... hxg4+ {[%clk 0:00:48.3]} 41.
Kxg4 {[%clk 0:00:52]} 41... Kf7 {[%clk 0:00:47.8]} 42. Nf4 {[%clk 0:00:46.8]}
42... Be5 {[%clk 0:00:44.8]} 43. Nh3 {[%clk 0:00:47]} 43... Bf6 {[%clk
0:00:44.4]} 44. Nf4 {[%clk 0:00:46.1]} 44... Rh8 {[%clk 0:00:28.9]} 45. h5
{[%clk 0:00:44.8]} 45... gxh5+ {[%clk 0:00:26.5]} 46. Nxh5 {[%clk 0:00:45.7]}
46... Rg8+ {[%clk 0:00:26.3]} 47. Kf3 {[%clk 0:00:45.8]} 47... Rg1 {[%clk
0:00:25.6]} 48. Nf4 {[%clk 0:00:43.8]} 48... Rb1 {[%clk 0:00:22.2]} 49. Re3
{[%clk 0:00:39.7]} 49... Bg5 {[%clk 0:00:21]} 50. Kg4 {[%clk 0:00:37]} 50...
Rg1+ {[%clk 0:00:19]} 0-1

[Event "*** Titled Tuesday Blitz"]
[Site "Chess.com"]
[Date "2020.10.20"]
[Round "6"]
[White "tylityli"]
[Black "Teo2000"]
[Result "0-1"]
[WhiteElo "2231"]
[BlackElo "2450"]
[TimeControl "180+1"]
[EndTime "11:08:54 PDT"]
[Termination "Teo2000 won by checkmate"]

1. d4 {[%clk 0:02:55.3]} 1... Nf6 {[%clk 0:02:57.9]} 2. c4 {[%clk 0:02:54.4]}
2... c5 {[%clk 0:02:58.5]} 3. d5 {[%clk 0:02:51.1]} 3... b5 {[%clk 0:02:59]} 4.
Nd2 {[%clk 0:02:50.6]} 4... e6 {[%clk 0:02:54.3]} 5. e4 {[%clk 0:02:49.7]} 5...
bxc4 {[%clk 0:02:53.9]} 6. Bxc4 {[%clk 0:02:47.8]} 6... Bb7 {[%clk 0:02:54]} 7.
Qe2 {[%clk 0:02:33]} 7... exd5 {[%clk 0:02:33.4]} 8. e5 {[%clk 0:02:29]} 8...
Ne4 {[%clk 0:02:11.9]} 9. Bxd5 {[%clk 0:02:08.8]} 9... Bxd5 {[%clk 0:02:11.7]}
10. Nxe4 {[%clk 0:02:08.7]} 10... Be7 {[%clk 0:02:05.9]} 11. Nd6+ {[%clk
0:02:07]} 11... Kf8 {[%clk 0:01:49.8]} 12. Nf3 {[%clk 0:02:06]} 12... Nc6 {[%clk
0:01:49.3]} 13. Nf5 {[%clk 0:01:58.4]} 13... Qc7 {[%clk 0:01:26]} 14. O-O {[%clk
0:01:55.6]} 14... Re8 {[%clk 0:01:20.4]} 15. Bf4 {[%clk 0:01:48]} 15... Bf6
{[%clk 0:01:00.7]} 16. Rfe1 {[%clk 0:01:33]} 16... Bxf3 {[%clk 0:00:53.2]} 17.
Qxf3 {[%clk 0:01:32.3]} 17... Bxe5 {[%clk 0:00:50.5]} 18. Qg3 {[%clk 0:01:08.5]}
18... Rg8 {[%clk 0:00:39.2]} 19. Bxe5 {[%clk 0:00:57.3]} 19... Rxe5 {[%clk
0:00:34.8]} 20. Qg4 {[%clk 0:00:45.1]} 20... g6 {[%clk 0:00:17.1]} 21. Ne3
{[%clk 0:00:31.3]} 21... Kg7 {[%clk 0:00:16.8]} 22. Nc4 {[%clk 0:00:29.6]} 22...
h5 {[%clk 0:00:13]} 23. Qh4 {[%clk 0:00:23.9]} 23... Re6 {[%clk 0:00:08.4]} 24.
Ne3 {[%clk 0:00:19.3]} 24... Rge8 {[%clk 0:00:08]} 25. Red1 {[%clk 0:00:19.5]}
25... Nd4 {[%clk 0:00:08.1]} 26. h3 {[%clk 0:00:17.4]} 26... Qc6 {[%clk
0:00:08]} 27. Qf4 {[%clk 0:00:14.9]} 27... Re4 {[%clk 0:00:07.7]} 28. Qf3 {[%clk
0:00:14.1]} 28... Nxf3+ {[%clk 0:00:07.5]} 29. gxf3 {[%clk 0:00:13.6]} 29...
Rxe3 {[%clk 0:00:08.2]} 30. fxe3 {[%clk 0:00:12.4]} 30... Qxf3 {[%clk
0:00:08.9]} 31. Rxd7 {[%clk 0:00:09.6]} 31... Rxe3 {[%clk 0:00:08.3]} 32. Rf1
{[%clk 0:00:08.4]} 32... Qg3+ {[%clk 0:00:08.7]} 33. Kh1 {[%clk 0:00:08.2]}
33... Qxh3+ {[%clk 0:00:09.3]} 34. Kg1 {[%clk 0:00:08.3]} 34... Rg3+ {[%clk
0:00:09.8]} 35. Kf2 {[%clk 0:00:07.9]} 35... Rf3+ {[%clk 0:00:10.5]} 36. Ke2
{[%clk 0:00:08]} 36... Qxf1+ {[%clk 0:00:11.3]} 37. Kd2 {[%clk 0:00:08.3]} 37...
Qf2+ {[%clk 0:00:11.1]} 38. Kc1 {[%clk 0:00:07.9]} 38... Qe3+ {[%clk 0:00:09.1]}
39. Kc2 {[%clk 0:00:07.8]} 39... Rf2+ {[%clk 0:00:09.6]} 40. Kd1 {[%clk
0:00:07.2]} 40... Qe2+ {[%clk 0:00:09.4]} 41. Kc1 {[%clk 0:00:06.9]} 41... Qc2#
{[%clk 0:00:10.3]} 0-1

[Event "*** Titled Tuesday Blitz"]
[Site "Chess.com"]
[Date "2020.10.20"]
[Round "6"]
[White "AndrewMaco"]
[Black "Gabrielian_Artur"]
[Result "0-1"]
[WhiteElo "2616"]
[BlackElo "2782"]
[TimeControl "180+1"]
[EndTime "11:08:55 PDT"]
[Termination "Gabrielian_Artur won by resignation"]

1. e4 {[%clk 0:02:58.4]} 1... c5 {[%clk 0:02:59.4]} 2. Nf3 {[%clk 0:02:56.4]}
2... d6 {[%clk 0:02:59.4]} 3. d4 {[%clk 0:02:55.4]} 3... cxd4 {[%clk 0:02:59.5]}
4. Nxd4 {[%clk 0:02:56.3]} 4... Nf6 {[%clk 0:02:59.3]} 5. Nc3 {[%clk 0:02:57]}
5... Nc6 {[%clk 0:02:59.4]} 6. Bg5 {[%clk 0:02:56.1]} 6... e6 {[%clk 0:02:58.3]}
7. Qd2 {[%clk 0:02:56.2]} 7... a6 {[%clk 0:02:58.8]} 8. O-O-O {[%clk 0:02:56.6]}
8... Bd7 {[%clk 0:02:58.4]} 9. f3 {[%clk 0:02:56.5]} 9... Be7 {[%clk 0:02:57.6]}
10. Be3 {[%clk 0:02:54.4]} 10... b5 {[%clk 0:02:46]} 11. Nxc6 {[%clk 0:02:54.2]}
11... Bxc6 {[%clk 0:02:45.8]} 12. Ne2 {[%clk 0:02:55.1]} 12... Rc8 {[%clk
0:02:43.7]} 13. Nd4 {[%clk 0:02:55.5]} 13... Bb7 {[%clk 0:02:42.2]} 14. Kb1
{[%clk 0:02:56.1]} 14... O-O {[%clk 0:02:40.8]} 15. g4 {[%clk 0:02:51]} 15... d5
{[%clk 0:02:40.9]} 16. e5 {[%clk 0:02:51.1]} 16... Nd7 {[%clk 0:02:40.6]} 17. f4
{[%clk 0:02:51.6]} 17... Nc5 {[%clk 0:02:38.5]} 18. Bd3 {[%clk 0:02:51.4]} 18...
Ne4 {[%clk 0:02:34.4]} 19. Qe1 {[%clk 0:02:46.1]} 19... Qc7 {[%clk 0:02:29.3]}
20. h4 {[%clk 0:02:44.8]} 20... b4 {[%clk 0:02:25.9]} 21. g5 {[%clk 0:02:41.8]}
21... a5 {[%clk 0:02:13.2]} 22. g6 {[%clk 0:02:35.5]} 22... hxg6 {[%clk
0:02:06]} 23. h5 {[%clk 0:02:35.4]} 23... g5 {[%clk 0:02:06.4]} 24. Qg1 {[%clk
0:02:17.9]} 24... a4 {[%clk 0:01:52.5]} 25. Bxe4 {[%clk 0:02:01.5]} 25... dxe4
{[%clk 0:01:52.3]} 26. Qh2 {[%clk 0:01:52.3]} 26... b3 {[%clk 0:01:21.6]} 27.
cxb3 {[%clk 0:01:44.3]} 27... axb3 {[%clk 0:01:21.1]} 28. axb3 {[%clk 0:01:42]}
28... Ba6 {[%clk 0:01:18.3]} 29. f5 {[%clk 0:01:36.4]} 29... exf5 {[%clk
0:00:51.1]} 30. Nxf5 {[%clk 0:01:31.2]} 30... Bd3+ {[%clk 0:00:50.8]} 31. Rxd3
{[%clk 0:01:24.7]} 31... exd3 {[%clk 0:00:51]} 32. Nxe7+ {[%clk 0:01:11.7]}
32... Qxe7 {[%clk 0:00:50.3]} 33. h6 {[%clk 0:00:59.5]} 33... g6 {[%clk
0:00:48]} 34. h7+ {[%clk 0:00:59.8]} 34... Kh8 {[%clk 0:00:47.8]} 35. Rg1 {[%clk
0:00:57.5]} 35... f6 {[%clk 0:00:27.6]} 36. Bd4 {[%clk 0:00:17.6]} 36... Qd7
{[%clk 0:00:25.8]} 37. Qf2 {[%clk 0:00:08.3]} 37... Rc2 {[%clk 0:00:19.5]} 38.
Qe3 {[%clk 0:00:07.8]} 38... Re2 {[%clk 0:00:19.2]} 39. Qxd3 {[%clk 0:00:06]}
39... Rxe5 {[%clk 0:00:19.2]} 40. Qc3 {[%clk 0:00:05.5]} 40... Qf5+ {[%clk
0:00:18.3]} 41. Kc1 {[%clk 0:00:05.2]} 41... Rc8 {[%clk 0:00:18.5]} 42. Bxe5
{[%clk 0:00:03.8]} 42... fxe5 {[%clk 0:00:18.8]} 43. Rd1 {[%clk 0:00:03]} 43...
Rxc3+ {[%clk 0:00:18.2]} 44. bxc3 {[%clk 0:00:03.9]} 44... Kxh7 {[%clk
0:00:18.6]} 0-1

[Event "*** Titled Tuesday Blitz"]
[Site "Chess.com"]
[Date "2020.10.20"]
[Round "6"]
[White "Chessalary"]
[Black "xberli"]
[Result "0-1"]
[WhiteElo "2349"]
[BlackElo "2564"]
[TimeControl "180+1"]
[EndTime "11:08:57 PDT"]
[Termination "xberli won by resignation"]

1. d4 {[%clk 0:03:00.9]} 1... Nf6 {[%clk 0:02:57.7]} 2. Nf3 {[%clk 0:02:59.9]}
2... g6 {[%clk 0:02:58.1]} 3. e3 {[%clk 0:03:00.8]} 3... Bg7 {[%clk 0:02:58.6]}
4. Be2 {[%clk 0:03:00.9]} 4... O-O {[%clk 0:02:59]} 5. O-O {[%clk 0:03:01.8]}
5... d5 {[%clk 0:02:58.9]} 6. c4 {[%clk 0:03:02.7]} 6... c5 {[%clk 0:02:58.8]}
7. Nc3 {[%clk 0:03:01.8]} 7... cxd4 {[%clk 0:02:55.4]} 8. exd4 {[%clk
0:03:02.7]} 8... Nc6 {[%clk 0:02:56.2]} 9. Be3 {[%clk 0:03:01.1]} 9... Bg4
{[%clk 0:02:50.8]} 10. Ne5 {[%clk 0:02:49.3]} 10... Bxe2 {[%clk 0:02:48.1]} 11.
Qxe2 {[%clk 0:02:50.2]} 11... Rc8 {[%clk 0:02:45.1]} 12. Nxc6 {[%clk 0:02:47.7]}
12... Rxc6 {[%clk 0:02:46]} 13. c5 {[%clk 0:02:46.9]} 13... b6 {[%clk
0:02:35.7]} 14. b4 {[%clk 0:02:45.6]} 14... Rc8 {[%clk 0:02:33.1]} 15. Rac1
{[%clk 0:02:43.5]} 15... Qd7 {[%clk 0:02:30.5]} 16. Rfd1 {[%clk 0:02:29.4]}
16... Rfd8 {[%clk 0:02:26.6]} 17. b5 {[%clk 0:02:07.2]} 17... Ng4 {[%clk
0:02:17.3]} 18. c6 {[%clk 0:02:04.6]} 18... Qf5 {[%clk 0:02:08.7]} 19. h3 {[%clk
0:01:59.7]} 19... Nxe3 {[%clk 0:02:06.8]} 20. Qxe3 {[%clk 0:02:00.6]} 20... e6
{[%clk 0:02:05.5]} 21. g4 {[%clk 0:01:57.3]} 21... Qf6 {[%clk 0:02:03.7]} 22. f4
{[%clk 0:01:57.1]} 22... Re8 {[%clk 0:01:49.7]} 23. a4 {[%clk 0:01:51.9]} 23...
Qe7 {[%clk 0:01:48]} 24. Ne2 {[%clk 0:01:47.7]} 24... Qb4 {[%clk 0:01:40.9]} 25.
Ra1 {[%clk 0:01:39]} 25... f6 {[%clk 0:01:29.3]} 26. Qc3 {[%clk 0:01:37.1]}
26... Qd6 {[%clk 0:01:25.8]} 27. Qa3 {[%clk 0:01:31.3]} 27... Qc7 {[%clk
0:01:22.4]} 28. a5 {[%clk 0:01:28.5]} 28... e5 {[%clk 0:01:10.1]} 29. axb6
{[%clk 0:01:24.9]} 29... axb6 {[%clk 0:01:10.2]} 30. dxe5 {[%clk 0:01:24.1]}
30... fxe5 {[%clk 0:01:11.1]} 31. Qa7 {[%clk 0:01:12.8]} 31... Qd6 {[%clk
0:01:01.3]} 32. Qd7 {[%clk 0:01:02.4]} 32... Qc5+ {[%clk 0:00:56.6]} 33. Kf1
{[%clk 0:00:53.4]} 33... Rcd8 {[%clk 0:00:50.2]} 34. Rxd5 {[%clk 0:00:42.5]}
34... Qxd5 {[%clk 0:00:48]} 35. Qxd5+ {[%clk 0:00:33.2]} 35... Rxd5 {[%clk
0:00:48.9]} 36. Nc3 {[%clk 0:00:30.1]} 36... Rd4 {[%clk 0:00:37.3]} 37. Ra7
{[%clk 0:00:27.8]} 37... exf4 {[%clk 0:00:31.6]} 38. c7 {[%clk 0:00:23.8]} 38...
f3 {[%clk 0:00:26.4]} 39. Rb7 {[%clk 0:00:21.1]} 39... Be5 {[%clk 0:00:18.3]}
40. Kf2 {[%clk 0:00:10.6]} 40... Rd2+ {[%clk 0:00:15.8]} 41. Kxf3 {[%clk
0:00:10.1]} 41... Rd3+ {[%clk 0:00:14.2]} 0-1

[Event "*** Titled Tuesday Blitz"]
[Site "Chess.com"]
[Date "2020.10.20"]
[Round "6"]
[White "Pertinhez76"]
[Black "anon569"]
[Result "0-1"]
[WhiteElo "2140"]
[BlackElo "2266"]
[TimeControl "180+1"]
[EndTime "11:08:57 PDT"]
[Termination "anon569 won by checkmate"]

1. e4 {[%clk 0:03:00.9]} 1... c5 {[%clk 0:02:56.4]} 2. Nf3 {[%clk 0:02:56.9]}
2... d6 {[%clk 0:02:56.6]} 3. c3 {[%clk 0:02:56]} 3... Nf6 {[%clk 0:02:55.6]} 4.
d3 {[%clk 0:02:55.8]} 4... Nc6 {[%clk 0:02:54.3]} 5. Nbd2 {[%clk 0:02:55.9]}
5... e5 {[%clk 0:02:49.7]} 6. g3 {[%clk 0:02:55.9]} 6... Be7 {[%clk 0:02:47.4]}
7. Bg2 {[%clk 0:02:56]} 7... O-O {[%clk 0:02:47.7]} 8. O-O {[%clk 0:02:55.8]}
8... d5 {[%clk 0:02:44.3]} 9. Qc2 {[%clk 0:02:54.8]} 9... Re8 {[%clk 0:02:42.8]}
10. Re1 {[%clk 0:02:51.8]} 10... Bf8 {[%clk 0:02:40.5]} 11. a4 {[%clk
0:02:47.5]} 11... h6 {[%clk 0:02:38.6]} 12. Nh4 {[%clk 0:02:43.6]} 12... Be6
{[%clk 0:02:26]} 13. Nf1 {[%clk 0:02:26.3]} 13... d4 {[%clk 0:02:14.2]} 14. Nd2
{[%clk 0:02:05.2]} 14... dxc3 {[%clk 0:01:54.3]} 15. bxc3 {[%clk 0:02:04.4]}
15... Qd7 {[%clk 0:01:54.3]} 16. a5 {[%clk 0:01:55.8]} 16... Rad8 {[%clk
0:01:51.5]} 17. Bf1 {[%clk 0:01:55.7]} 17... Qc7 {[%clk 0:01:27.2]} 18. a6
{[%clk 0:01:53.4]} 18... b6 {[%clk 0:01:26.7]} 19. Nc4 {[%clk 0:01:49.5]} 19...
g6 {[%clk 0:01:02.6]} 20. Ne3 {[%clk 0:01:39.1]} 20... Na5 {[%clk 0:00:56]} 21.
Bb2 {[%clk 0:01:27.6]} 21... Qc8 {[%clk 0:00:38.8]} 22. f4 {[%clk 0:01:16.9]}
22... exf4 {[%clk 0:00:25.6]} 23. gxf4 {[%clk 0:01:16.4]} 23... Ng4 {[%clk
0:00:10.6]} 24. f5 {[%clk 0:01:04.7]} 24... Nxe3 {[%clk 0:00:09.5]} 25. Rxe3
{[%clk 0:01:03.1]} 25... gxf5 {[%clk 0:00:10.1]} 26. Rg3+ {[%clk 0:00:56.3]}
26... Kh7 {[%clk 0:00:07.3]} 27. d4 {[%clk 0:00:44.9]} 27... cxd4 {[%clk
0:00:06.1]} 28. exf5 {[%clk 0:00:43.3]} 28... Bb3 {[%clk 0:00:06.1]} 29. Qg2
{[%clk 0:00:18.4]} 29... d3 {[%clk 0:00:05]} 30. f6 {[%clk 0:00:17.1]} 30...
Qc5+ {[%clk 0:00:04.9]} 31. Kh1 {[%clk 0:00:16.4]} 31... Bd5 {[%clk 0:00:04.9]}
32. Nf3 {[%clk 0:00:17]} 32... Bxf3 {[%clk 0:00:04]} 33. Qxf3 {[%clk 0:00:15.6]}
33... Qd5 {[%clk 0:00:04.2]} 34. Qxd5 {[%clk 0:00:15.1]} 34... Rxd5 {[%clk
0:00:04.8]} 35. Bxd3+ {[%clk 0:00:15.8]} 35... Kh8 {[%clk 0:00:05.2]} 36. Rag1
{[%clk 0:00:13.3]} 36... Bd6 {[%clk 0:00:04.9]} 37. Rg7 {[%clk 0:00:12.1]} 37...
Rxd3 {[%clk 0:00:05]} 38. Rxf7 {[%clk 0:00:08.9]} 38... Rd2 {[%clk 0:00:05.5]}
39. Bc1 {[%clk 0:00:08.5]} 39... Rxh2# {[%clk 0:00:05.1]} 0-1